lending/lending_fUSD_20240522
["ID","MTS","AMOUNT","RATE_DAILY","PERIOD"]
[327724103,1716383440773,-500.0,0.00024077,2]
[327724104,1716383440782,-500.0,0.00024077,2]
[327724105,1716383440792,-500.0,0.00024077,2]
[327724106,1716383440802,-500.0,0.00024077,2]
[327724107,1716383440812,-500.0,0.00024077,2]
[327724108,1716383440821,-500.0,0.00024077,2]
[327724109,1716383440831,-500.0,0.00024077,2]
[327724110,1716383440841,-500.0,0.00024077,2]
[327724111,1716383440851,-500.0,0.00024077,2]
[327724112,1716383440863,-500.0,0.00024077,2]
[327724114,1716383440875,-500.0,0.00024077,2]
[327724117,1716383440887,-500.0,0.00024077,2]
[327724118,1716383440896,-500.0,0.00024077,2]
[327724120,1716383440907,-500.0,0.00024077,2]
[327724123,1716383440917,-500.0,0.00024077,2]
[327724124,1716383440926,-500.0,0.00024077,2]
[327724127,1716383440940,-500.0,0.00024077,2]
[327724129,1716383440948,-500.0,0.00024077,2]
[327724130,1716383440958,-500.0,0.00024077,2]
[327724132,1716383440968,-500.0,0.00024077,2]
[327724134,1716383440978,-500.0,0.00024077,2]
[327724136,1716383440987,-500.0,0.00024077,2]
[327724137,1716383440996,-500.0,0.00024077,2]
[327724138,1716383441006,-500.0,0.00024077,2]
[327724139,1716383441016,-500.0,0.00024077,2]
[327724140,1716383441026,-500.0,0.00024077,2]
[327724141,1716383441037,-500.0,0.00024077,2]
[327724142,1716383441047,-500.0,0.00024077,2]
[327724143,1716383441057,-500.0,0.00024077,2]
[327724144,1716383441066,-500.0,0.00024077,2]
[327724145,1716383441076,-500.0,0.00024077,2]
[327724146,1716383441087,-500.0,0.00024077,2]
[327724147,1716383441096,-500.0,0.00024077,2]
[327724148,1716383441106,-500.0,0.00024077,2]
[327724149,1716383441116,-500.0,0.00024077,2]
[327724150,1716383441126,-500.0,0.00024077,2]
[327724151,1716383441137,-500.0,0.00024077,2]
[327724152,1716383441146,-500.0,0.00024077,2]
[327724153,1716383441156,-500.0,0.00024077,2]
[327724154,1716383441165,-500.0,0.00024077,2]
[327724155,1716383441175,-500.0,0.00024077,2]
[327724156,1716383441185,-500.0,0.00024077,2]
[327724157,1716383441195,-500.0,0.00024077,2]
[327724158,1716383441204,-500.0,0.00024077,2]
[327724159,1716383441214,-500.0,0.00024077,2]
[327724160,1716383441224,-500.0,0.00024077,2]
[327724161,1716383441233,-500.0,0.00024077,2]
[327724162,1716383441242,-500.0,0.00024077,2]
[327724163,1716383441253,-500.0,0.00024077,2]
[327724164,1716383441262,-500.0,0.00024077,2]
[327724165,1716383441272,-500.0,0.00024077,2]
[327724166,1716383441282,-500.0,0.00024077,2]
[327724167,1716383441291,-500.0,0.00024077,2]
[327724168,1716383441301,-500.0,0.00024077,2]
[327724169,1716383441311,-500.0,0.00024077,2]
[327724170,1716383441320,-500.0,0.00024077,2]
[327724171,1716383441329,-500.0,0.00024077,2]
[327724172,1716383441339,-500.0,0.00024077,2]
[327724173,1716383441349,-500.0,0.00024077,2]
[327724174,1716383441358,-155.31485281,0.00024144,2]
[327724175,1716383441367,-231.08471568,0.00024174,2]
[327724176,1716383441377,-152.98488687,0.00024217,2]
[327724177,1716383441387,-170.28693671,0.00024223,2]
[327724178,1716383441396,-844.431996,0.00024227,2]
[327724179,1716383441405,-844.431995,0.00024227,2]
[327724180,1716383441414,-844.431995,0.00024227,2]
[327724181,1716383441424,-235.507659,0.00024227,2]
[327724182,1716383441433,-2102.623739,0.00024227,2]
[327724183,1716383441446,-708.992125,0.00024227,2]
[327724184,1716383441458,-472.661417,0.00024227,2]
[327724185,1716383441467,-844.431995,0.00024227,2]
[327724186,1716383441477,-180.0,0.0002423,2]
[327724187,1716383441488,-200.88522018,0.00024245,2]
[327724188,1716383441498,-423.8575708,0.0002426,2]
[327724189,1716383441508,-166.29644051,0.00024282,2]
[327724190,1716383441626,-423.8575708,0.00024352,2]
[327724191,1716383441638,-500.0,0.00024357,2]
[327724192,1716383441648,-500.0,0.00024357,2]
[327724193,1716383441658,-500.0,0.00024357,2]
[327724194,1716383441667,-500.0,0.00024357,2]
[327724195,1716383441676,-500.0,0.00024357,2]
[327724196,1716383441685,-500.0,0.00024357,2]
[327724197,1716383441695,-500.0,0.00024357,2]
[327724198,1716383441704,-500.0,0.00024357,2]
[327724199,1716383441713,-500.0,0.00024357,2]
[327724200,1716383441722,-500.0,0.00024357,2]
[327724201,1716383441732,-500.0,0.00024357,2]
[327724202,1716383441741,-500.0,0.00024357,2]
[327724203,1716383441750,-500.0,0.00024357,2]
[327724204,1716383441760,-500.0,0.00024357,2]
[327724205,1716383441769,-500.0,0.00024357,2]
[327724206,1716383441779,-500.0,0.00024357,2]
[327724207,1716383441788,-500.0,0.00024357,2]
[327724208,1716383441798,-500.0,0.00024357,2]
[327724209,1716383441807,-500.0,0.00024357,2]
[327724210,1716383441816,-500.0,0.00024357,2]
[327724211,1716383441825,-500.0,0.00024357,2]
[327724212,1716383441835,-500.0,0.00024357,2]
[327724213,1716383441844,-500.0,0.00024357,2]
[327724214,1716383441854,-500.0,0.00024357,2]
[327724215,1716383441868,-500.0,0.00024357,2]
[327724216,1716383441878,-500.0,0.00024357,2]
[327724217,1716383441889,-500.0,0.00024357,2]
[327724218,1716383441898,-500.0,0.00024357,2]
[327724219,1716383441909,-500.0,0.00024357,2]
[327724220,1716383441918,-500.0,0.00024357,2]
[327724221,1716383441928,-500.0,0.00024357,2]
[327724222,1716383441938,-500.0,0.00024357,2]
[327724223,1716383441950,-500.0,0.00024357,2]
[327724224,1716383441959,-500.0,0.00024357,2]
[327724225,1716383441969,-500.0,0.00024357,2]
[327724226,1716383441978,-500.0,0.00024357,2]
[327724227,1716383441987,-500.0,0.00024357,2]
[327724228,1716383441996,-500.0,0.00024357,2]
[327724229,1716383442005,-500.0,0.00024357,2]
[327724230,1716383442015,-500.0,0.00024357,2]
[327724231,1716383442024,-500.0,0.00024357,2]
[327724232,1716383442034,-500.0,0.00024357,2]
[327724233,1716383442043,-500.0,0.00024357,2]
[327724234,1716383442052,-500.0,0.00024357,2]
[327724235,1716383442061,-500.0,0.00024357,2]
[327724236,1716383442071,-500.0,0.00024357,2]
[327724237,1716383442080,-500.0,0.00024357,2]
[327724238,1716383442089,-500.0,0.00024357,2]
[327724239,1716383442098,-500.0,0.00024357,2]
[327724240,1716383442108,-500.0,0.00024357,2]
[327724241,1716383442117,-500.0,0.00024357,2]
[327724242,1716383442127,-500.0,0.00024357,2]
[327724243,1716383442137,-500.0,0.00024357,2]
[327724244,1716383442147,-500.0,0.00024357,2]
[327724245,1716383442156,-500.0,0.00024357,2]
[327724246,1716383442166,-500.0,0.00024357,2]
[327724247,1716383442176,-500.0,0.00024357,2]
[327724248,1716383442185,-500.0,0.00024357,2]
[327724249,1716383442194,-500.0,0.00024357,2]
[327724250,1716383442204,-500.0,0.00024357,2]
[327724251,1716383442213,-500.0,0.00024357,2]
[327724252,1716383442223,-500.0,0.00024357,2]
[327724253,1716383442232,-500.0,0.00024357,2]
[327724254,1716383442242,-500.0,0.00024357,2]
[327724255,1716383442252,-500.0,0.00024357,2]
[327724256,1716383442262,-500.0,0.00024357,2]
[327724257,1716383442271,-500.0,0.00024357,2]
[327724258,1716383442282,-500.0,0.00024357,2]
[327724259,1716383442291,-500.0,0.00024357,2]
[327724260,1716383442300,-500.0,0.00024357,2]
[327724261,1716383442311,-500.0,0.00024357,2]
[327724262,1716383442321,-500.0,0.00024357,2]
[327724263,1716383442330,-500.0,0.00024357,2]
[327724264,1716383442339,-500.0,0.00024357,2]
[327724265,1716383442348,-500.0,0.00024357,2]
[327724266,1716383442358,-500.0,0.00024357,2]
[327724267,1716383442367,-500.0,0.00024357,2]
[327724268,1716383442376,-500.0,0.00024357,2]
[327724269,1716383442385,-500.0,0.00024357,2]
[327724270,1716383442395,-500.0,0.00024357,2]
[327724271,1716383442404,-500.0,0.00024357,2]
[327724272,1716383442414,-500.0,0.00024357,2]
[327724273,1716383442423,-500.0,0.00024357,2]
[327724274,1716383442432,-500.0,0.00024357,2]
[327724275,1716383442442,-500.0,0.00024357,2]
[327724276,1716383442451,-500.0,0.00024357,2]
[327724277,1716383442460,-500.0,0.00024357,2]
[327724278,1716383442469,-500.0,0.00024357,2]
[327724279,1716383442480,-500.0,0.00024357,2]
[327724280,1716383442489,-500.0,0.00024357,2]
[327724281,1716383442499,-500.0,0.00024357,2]
[327724282,1716383442508,-500.0,0.00024357,2]
[327724283,1716383442517,-500.0,0.00024357,2]
[327724284,1716383442526,-500.0,0.00024357,2]
[327724285,1716383442535,-500.0,0.00024357,2]
[327724286,1716383442544,-500.0,0.00024357,2]
[327724287,1716383442554,-500.0,0.00024357,2]
[327724288,1716383442563,-500.0,0.00024357,2]
[327724289,1716383442572,-361.53668391,0.00024391,2]
[327724290,1716383442581,-231.08471568,0.000244,2]
[327724291,1716383442590,-152.98488687,0.00024432,2]
[327724292,1716383442600,-1478.14157316,0.000245,3]
[327724293,1716383442609,-844.431996,0.00024526,2]
[327724294,1716383442618,-844.431995,0.00024526,2]
[327724295,1716383442628,-844.431995,0.00024526,2]
[327724296,1716383442638,-235.507659,0.00024526,2]
[327724297,1716383442649,-2102.623739,0.00024526,2]
[327724298,1716383442659,-186.015969,0.00024526,2]
[327724299,1716383442669,-708.992125,0.00024526,2]
[327724300,1716383442679,-472.661417,0.00024526,2]
[327724301,1716383442689,-844.431995,0.00024526,2]
[327724302,1716383442700,-231.08471568,0.00024547,2]
[327724303,1716383442710,-154.49054118,0.00024593,2]
[327724304,1716383442719,-800.0,0.000246,8]
[327724305,1716383442728,-423.8575708,0.00024637,2]
[327724306,1716383442739,-423.8575708,0.00024651,2]
[327724307,1716383442749,-302.39,0.00024658,2]
[327724308,1716383442758,-250.0,0.00024658,2]
[327724309,1716383442767,-155.31485281,0.00024675,2]
[327724310,1716383442777,-500.0,0.000247,2]
[327724311,1716383442786,-1200.0,0.000247,9]
[327724312,1716383442796,-151.97205109,0.00024709,2]
[327724313,1716383442805,-155.46791382,0.00024712,2]
[327724314,1716383442815,-423.8575708,0.0002472,2]
[327724315,1716383442824,-151.8895225,0.00024755,2]
[327724316,1716383442833,-231.08471568,0.0002477,2]
[327724317,1716383442843,-228.06770619,0.00024793,2]
[327724318,1716383442852,-547.45858614,0.000248,2]
[327724319,1716383442864,-1600.0,0.000248,9]
[327724320,1716383442875,-844.431996,0.00024825,2]
[327724321,1716383442887,-844.431995,0.00024825,2]
[327724322,1716383442896,-844.431995,0.00024825,2]
[327724323,1716383442907,-235.507659,0.00024825,2]
[327724324,1716383442916,-2102.623739,0.00024825,2]
[327724325,1716383442925,-708.992125,0.00024825,2]
[327724326,1716383442934,-472.661417,0.00024825,2]
[327724327,1716383442946,-844.431995,0.00024825,2]
[327724328,1716383442956,-200.88522018,0.00024881,2]
[327724329,1716383442965,-186.46376129,0.000249,2]
[327724330,1716383442974,-174.238497,0.000249,2]
[327724333,1716383442984,-188.29667437,0.000249,2]
[327724334,1716383442993,-174.0894968,0.000249,2]
[327724336,1716383443002,-548.0223,0.000249,2]
[327724338,1716383443012,-170.28693671,0.000249,2]
[327724340,1716383443021,-2000.0,0.000249,9]
[327724342,1716383443031,-198.72994486,0.000249,2]
[327724344,1716383443040,-197.52167346,0.000249,2]
[327724345,1716383443049,-1196.6409015,0.000249,2]
[327724346,1716383443059,-154.49054118,0.00024914,2]
[327724347,1716383443070,-166.73621259,0.00024915,2]
[327724349,1716383443082,-154.49054118,0.00024953,2]
[327724351,1716383443091,-159.16129054,0.00024962,2]
[327724353,1716383443102,-361.53668391,0.00024968,2]
[327724355,1716383443113,-904.0,0.0002497,15]
[327724357,1716383443123,-904.0,0.0002498,15]
[327724359,1716383443133,-189.0,0.00024983,15]
[327724360,1716383443146,-800.0,0.00024986,2]
[327724361,1716383443156,-156.9120435,0.00024987,2]
[327724362,1716383443165,-9155.08316628,0.0002499,2]
[327724364,1716383443175,-904.0,0.0002499,15]
[327724366,1716383443185,-205.4874696,0.0002499,2]
[327724368,1716383443195,-205.4874696,0.0002499,2]
[327724370,1716383443205,-189.0,0.00024993,15]
[327724372,1716383443215,-423.8575708,0.00024994,2]
[327724374,1716383443227,-155.11805651,0.00024996,3]
[327724376,1716383443237,-158.97058847,0.00024997,2]
[327724378,1716383443247,-155.0,0.00024997,2]
[327724381,1716383443256,-155.13360489,0.00024997,2]
[327724382,1716383443266,-246.62401169,0.00024997,2]
[327724383,1716383443276,-161.20739138,0.00024997,2]
[327724384,1716383443285,-156.63963123,0.00024998,2]
[327724385,1716383443391,-1538.73872114,0.00024998,2]
[327724386,1716383443402,-168.44065273,0.00024998,2]
[327724387,1716383443412,-155.52154493,0.00024998,2]
[327724388,1716383443422,-6239.63008206,0.00024998,2]
[327724389,1716383443433,-7759.18671295,0.00024999,2]
[327724390,1716383443443,-9643.35043134,0.00024999,2]
[327724391,1716383443453,-158.26245048,0.00024999,2]
[327724392,1716383443463,-1552.82804364,0.00024999,2]
[327724393,1716383443474,-257.85125369,0.00024999,2]
[327724394,1716383443484,-723269.26057661,0.00025,9]
[327724395,1716383443495,-248.97029145,0.00025,2]
[327724396,1716383443504,-1442893.48941843,0.00025,2]
[327724402,1716383443862,-592578.16892733,0.00025,2]
[327724406,1716383443874,-1023.26975174,0.00025,2]
[327724421,1716383443909,-4712.18710168,0.00025,2]
[327724425,1716383443921,-264.04454213,0.00025,2]
[327724430,1716383443934,-1200.0,0.00025,2]
[327724441,1716383443979,-724.25989765,0.00025,2]
[327724446,1716383443990,-96653.4208335,0.00025,2]
[327724448,1716383444000,-217.35913135,0.00025,2]
[327724450,1716383444010,-1418.27,0.00025,2]
[327724452,1716383444019,-224.2998362,0.00025,2]
[327724454,1716383444029,-1530.13,0.00025,2]
[327724456,1716383444038,-19947.52,0.00025,2]
[327724458,1716383444048,-189.0,0.00025003,15]
[327724460,1716383444057,-155.46791382,0.0002502,2]
[327724462,1716383444067,-231.08471568,0.00025022,2]
[327724464,1716383444076,-151.8895225,0.00025031,2]
[327724465,1716383444086,-231.08471568,0.00025087,2]
[327724467,1716383444096,-423.8575708,0.00025115,2]
[327724468,1716383444105,-186.015969,0.00025124,2]
[327724470,1716383444115,-183.896947,0.00025124,2]
[327724472,1716383444125,-844.431996,0.00025124,2]
[327724473,1716383444134,-844.431995,0.00025124,2]
[327724475,1716383444146,-844.431995,0.00025124,2]
[327724476,1716383444155,-235.507659,0.00025124,2]
[327724478,1716383444165,-2102.623739,0.00025124,2]
[327724480,1716383444175,-186.015969,0.00025124,2]
[327724481,1716383444184,-708.992125,0.00025124,2]
[327724483,1716383444193,-472.661417,0.00025124,2]
[327724484,1716383444203,-844.431995,0.00025124,2]
[327724486,1716383444212,-152.98488687,0.00025139,2]
[327724487,1716383444222,-6891.47046359,0.00025214,2]
[327724489,1716383444232,-423.8575708,0.00025215,2]
[327724490,1716383444242,-151.8895225,0.00025233,2]
[327724492,1716383444252,-154.49054118,0.0002525,2]
[327724494,1716383444262,-200.88522018,0.00025254,2]
[327724495,1716383444272,-151.97205109,0.00025281,2]
[327724497,1716383444282,-361.53668391,0.00025325,2]
[327724499,1716383444293,-164.26526272,0.00025342,2]
[327724500,1716383444303,-150.0,0.000255,4]
[327724502,1716383444314,-1552.59788043,0.00025532,2]
[327724504,1716383444323,-151.8895225,0.00025555,2]
[327724506,1716383444334,-155.31485281,0.00025591,2]
[327724508,1716383444344,-155.31485281,0.00025617,2]
[327724509,1716383444354,-152.98488687,0.00025628,2]
[327724511,1716383444363,-423.8575708,0.00025679,2]
[327724513,1716383444373,-231.08471568,0.0002571,2]
[327724514,1716383444382,-231.08471568,0.00025742,2]
[327724516,1716383444393,-303.8,0.00025796,2]
[327724517,1716383444403,-636.2945,0.0002583,2]
[327724518,1716383444413,-580.5461,0.0002583,2]
[327724519,1716383444422,-152.98488687,0.0002587,2]
[327724520,1716383444432,-151.8895225,0.00025911,2]
[327724521,1716383444442,-155.31485281,0.00025925,2]
[327724522,1716383444451,-636.29451,0.0002593,2]
[327724523,1716383444589,-326.11337643,0.00025931,2]
[327724524,1716383444602,-166.66666665,0.00025931,2]
[327724525,1716383444614,-150.0,0.00026,4]
[327724526,1716383444624,-154.21988294,0.00026002,2]
[327724527,1716383444634,-200.88522018,0.00026019,2]
[327724528,1716383444646,-151.8895225,0.00026056,2]
[327724529,1716383444656,-361.53668391,0.00026076,2]
[327724530,1716383444665,-636.29451,0.0002609,2]
[327724531,1716383444676,-1530.13,0.000261,2]
[327724532,1716383444686,-636.2945,0.0002624,2]
[327724533,1716383444695,-157.54884506,0.00026281,2]
[327724534,1716383444705,-152.98488687,0.0002629,2]
[327724535,1716383444714,-151.97205109,0.00026293,2]
[327724536,1716383444724,-231.08471568,0.00026365,2]
[327724537,1716383444733,-155.31485281,0.00026386,2]
[327724538,1716383444742,-636.29451,0.000264,2]
[327724539,1716383444751,-231.08471568,0.00026425,2]
[327724540,1716383444761,-580.54611,0.0002646,2]
[327724541,1716383444770,-152.98488687,0.00026478,2]
[327724542,1716383444779,-150.0,0.000265,5]
[327724543,1716383444789,-636.29451,0.0002656,2]
[327724544,1716383444799,-152.98488687,0.0002656,2]
[327724545,1716383444808,-361.53668391,0.00026576,2]
[327724546,1716383444818,-361.53668391,0.00026621,2]
[327724547,1716383444828,-168.22440172,0.00026628,2]
[327724548,1716383444838,-193.529612,0.00026702,2]
[327724549,1716383444847,-361.53668391,0.00026719,2]
[327724550,1716383444857,-151.8895225,0.00026744,2]
[327724551,1716383444870,-166.73621259,0.00026767,2]
[327724552,1716383444880,-423.8575708,0.00026791,2]
[327724553,1716383444890,-1058.9,0.000268,5]
[327724554,1716383444901,-423.8575708,0.00026818,2]
[327724555,1716383444912,-155.31485281,0.00026869,2]
[327724556,1716383444921,-361.53668391,0.00026893,2]
[327724557,1716383444931,-1418.27,0.000269,2]
[327724558,1716383444943,-346.04,0.00026921,2]
[327724559,1716383444955,-423.8575708,0.00026938,2]
[327724560,1716383444965,-155.0,0.00027,4]
[327724561,1716383444975,-832.0508297,0.00027,2]
[327724562,1716383444985,-300.0,0.00027,2]
[327724563,1716383444995,-850.0,0.00027,2]
[327724564,1716383445005,-1185.5,0.00027,6]
[327724565,1716383445015,-2000.0,0.00027,2]
[327724566,1716383445024,-150.0,0.00027,5]
[327724567,1716383445035,-152.98488687,0.00027001,2]
[327724568,1716383445045,-3900.196605,0.0002701,2]
[327724569,1716383445055,-151.8895225,0.00027026,2]
[327724570,1716383445065,-361.53668391,0.00027048,2]
[327724571,1716383445074,-311.04573926,0.0002705,2]
[327724572,1716383445084,-361.53668391,0.00027071,2]
[327724573,1716383445094,-580.5461,0.0002708,2]
[327724574,1716383445103,-200.88522018,0.00027109,2]
[327724575,1716383445114,-155.46791382,0.00027126,2]
[327724576,1716383445123,-151.8895225,0.0002713,2]
[327724577,1716383445133,-157.54884506,0.00027165,2]
[327724578,1716383445143,-1530.13,0.000272,2]
[327724579,1716383445153,-361.53668391,0.00027206,2]
[327724580,1716383445162,-200.88522018,0.00027272,2]
[327724581,1716383445171,-160.36674768,0.00027315,2]
[327724582,1716383445181,-151.97205109,0.00027384,2]
[327724583,1716383445190,-14160.35,0.00027397,2]
[327724584,1716383445200,-15832.07,0.00027397,2]
[327724585,1716383445209,-200.0,0.000274,2]
[327724586,1716383445218,-356.73,0.000274,2]
[327724587,1716383445227,-356.73,0.000274,2]
[327724588,1716383445237,-356.73,0.000274,2]
[327724589,1716383445246,-152.98488687,0.00027422,2]
[327724590,1716383445256,-200.88522018,0.00027449,2]
[327724591,1716383445265,-231.08471568,0.00027495,2]
[327724592,1716383445275,-152.98488687,0.00027498,2]
[327724593,1716383445285,-188.96910441,0.000275,2]
[327724594,1716383445294,-2500.0,0.000275,2]
[327724595,1716383445304,-150.0,0.000275,5]
[327724596,1716383445313,-151.8895225,0.0002753,2]
[327724597,1716383445322,-231.08471568,0.00027537,2]
[327724598,1716383445331,-153.3330513,0.00027543,2]
[327724599,1716383445342,-423.8575708,0.00027544,2]
[327724600,1716383445352,-423.8575708,0.00027583,2]
[327724601,1716383445361,-150.0,0.00027638,2]
[327724602,1716383445372,-1000.0,0.00027654,15]
[327724603,1716383445382,-200.0,0.00027654,2]
[327724604,1716383445397,-423.8575708,0.00027693,2]
[327724605,1716383445406,-9323.69780628,0.000277,2]
[327724606,1716383445416,-580.54611,0.0002771,2]
[327724607,1716383445425,-152.98488687,0.00027712,2]
[327724608,1716383445435,-155.31485281,0.00027723,2]
[327724609,1716383445444,-361.53668391,0.00027743,2]
[327724610,1716383445453,-150.0,0.00027748,2]
[327724611,1716383445463,-150.0,0.00027777,2]
[327724612,1716383445473,-159.36999109,0.00027796,2]
[327724613,1716383445484,-1108.5,0.000278,6]
[327724614,1716383445494,-151.8895225,0.00027808,2]
[327724615,1716383445504,-151.8895225,0.00027867,2]
[327724616,1716383445513,-231.08471568,0.00027877,2]
[327724617,1716383445523,-152.98488687,0.00027884,2]
[327724618,1716383445533,-150.0,0.00027896,2]
[327724619,1716383445542,-158.89683256,0.00027896,2]
[327724620,1716383445552,-150.0,0.00027926,2]
[327724621,1716383445561,-150.0,0.00027965,2]
[327724622,1716383445571,-150.0,0.00027997,2]
[327724623,1716383445580,-24687.04005361,0.00028,2]
[327724624,1716383445589,-493.74080107,0.00028,2]
[327724625,1716383445599,-1128.58,0.00028,13]
[327724626,1716383445608,-350.408241,0.00028,2]
[327724627,1716383445617,-398.758519,0.00028,2]
[327724628,1716383445626,-1500.0,0.00028,2]
[327724629,1716383445636,-150.0,0.00028,5]
[327724630,1716383445647,-155.31485281,0.00028006,2]
[327724631,1716383445656,-150.0,0.00028042,2]
[327724632,1716383445665,-150.0,0.00028047,2]
[327724633,1716383445675,-303.8,0.0002806,2]
[327724634,1716383445684,-231.08471568,0.00028073,2]
[327724635,1716383445693,-1418.27,0.000281,2]
[327724636,1716383445702,-223.0,0.000281,2]
[327724637,1716383445712,-262.7,0.000281,2]
[327724638,1716383445722,-353.0,0.000281,2]
[327724639,1716383445731,-1000.0,0.000281,2]
[327724640,1716383445740,-155.31485281,0.00028104,2]
[327724641,1716383445750,-159.36999109,0.0002817,2]
[327724642,1716383445759,-6891.47046359,0.00028191,2]
[327724643,1716383445769,-150.0,0.00028208,2]
[327724644,1716383445778,-150.0,0.00028222,2]
[327724645,1716383445787,-200.88522018,0.00028222,2]
[327724646,1716383445797,-159.36999109,0.00028229,2]
[327724647,1716383445807,-152.98488687,0.00028235,2]
[327724648,1716383445817,-150.0,0.0002825,2]
[327724650,1716383445827,-423.8575708,0.00028252,2]
[327724651,1716383445836,-1530.13,0.000283,2]
[327724653,1716383445846,-200.88522018,0.00028307,2]
[327724655,1716383445855,-580.5461,0.0002833,2]
[327724657,1716383445870,-361.53668391,0.0002835,2]
[327724659,1716383445879,-361.53668391,0.00028361,2]
[327724661,1716383445890,-200.88522018,0.00028384,2]
[327724662,1716383445899,-150.0,0.00028395,2]
[327724663,1716383445910,-174.08949677,0.000284,2]
[327724664,1716383445919,-200.88522018,0.00028421,2]
[327724665,1716383445928,-150.0,0.00028426,2]
[327724666,1716383445938,-154.67800329,0.00028434,2]
[327724667,1716383445948,-200.88522018,0.00028439,2]
[327724668,1716383445957,-155.31485281,0.00028439,2]
[327724669,1716383445967,-150.0,0.00028451,2]
[327724670,1716383445976,-150.0,0.00028453,2]
[327724671,1716383445986,-423.8575708,0.00028456,2]
[327724672,1716383445995,-150.0,0.0002848,2]
[327724673,1716383446005,-150.0,0.00028488,2]
[327724674,1716383446014,-179.04,0.00028493,2]
[327724675,1716383446024,-1500.0,0.000285,2]
[327724676,1716383446033,-150.0,0.000285,5]
[327724677,1716383446142,-151.8895225,0.00028517,2]
[327724678,1716383446153,-231.08471568,0.00028538,2]
[327724679,1716383446163,-150.0,0.00028553,2]
[327724680,1716383446172,-151.8895225,0.00028572,2]
[327724681,1716383446182,-150.0,0.00028573,2]
[327724682,1716383446192,-150.0,0.00028589,2]
[327724683,1716383446202,-150.0,0.00028589,2]
[327724684,1716383446212,-150.0,0.00028594,2]
[327724685,1716383446223,-19623.63845774,0.000286,2]
[327724686,1716383446234,-166.66666666,0.00028612,2]
[327724687,1716383446244,-151.8895225,0.00028666,2]
[327724688,1716383446254,-160.36674769,0.00028671,2]
[327724689,1716383446264,-150.0,0.00028684,2]
[327724690,1716383446274,-150.0,0.00028693,2]
[327724691,1716383446283,-200.88522018,0.00028693,2]
[327724692,1716383446293,-158.89683256,0.0002872,2]
[327724693,1716383446302,-157.54884506,0.00028736,2]
[327724694,1716383446312,-200.88522018,0.00028737,2]
[327724695,1716383446321,-151.97205109,0.0002874,2]
[327724696,1716383446331,-154.67800329,0.00028754,2]
[327724697,1716383446340,-423.8575708,0.00028768,2]
[327724698,1716383446349,-150.0,0.00028788,2]
[327724699,1716383446358,-159.0,0.000288,2]
[327724700,1716383446368,-887.872603,0.000288,2]
[327724701,1716383446377,-150.0,0.00028806,2]
[327724702,1716383446386,-150.0,0.0002882,2]
[327724703,1716383446402,-150.0,0.00028839,2]
[327724704,1716383446412,-231.08471568,0.00028881,2]
[327724705,1716383446421,-150.0,0.00028889,2]
[327724706,1716383446430,-151.9720511,0.00028898,2]
[327724707,1716383446440,-150.0,0.0002891,2]
[327724708,1716383446449,-150.0,0.00028912,2]
[327724709,1716383446459,-154.49054118,0.00028912,2]
[327724710,1716383446469,-155.31485281,0.00028918,2]
[327724711,1716383446479,-150.0,0.00028924,2]
[327724712,1716383446489,-150.0,0.00028926,2]
[327724713,1716383446498,-3675.57893793,0.0002895,2]
[327724714,1716383446508,-580.54611,0.0002896,2]
[327724715,1716383446517,-150.0,0.00028963,2]